bitfinex/quotes_SOLUSD_20250318
["timestamp","ask_amount","ask_price","bid_price","bid_amount"]
[1742306401630,20.0,122.57,122.56,12.79533047]
[1742306401807,61.46521039,122.57,122.56,12.79533047]
[1742306402207,61.46521039,122.57,122.56,0.063]
[1742306402408,7.6683,122.62,122.56,0.063]
[1742306402610,41.46521039,122.57,122.56,0.063]
[1742306405322,81.8,122.56,122.54,0.063]
[1742306405622,41.46521039,122.55,122.54,0.063]
[1742306407121,41.46521039,122.57,122.54,0.34732314]
[1742306407631,41.46521039,122.56,122.54,0.34732314]
[1742306408126,81.8,122.58,122.54,60.60434396]
[1742306408425,41.46521039,122.59,122.54,60.60434396]
[1742306408624,41.46521039,122.59,122.54,19.13913357]
[1742306408841,41.46521039,122.58,122.54,19.13913357]
[1742306409028,41.46521039,122.58,122.54,60.60434396]
[1742306410044,41.46521039,122.59,122.57,20.0]
[1742306410220,81.83,122.61,122.58,20.0]
[1742306410417,81.83,122.61,122.59,20.0]
[1742306410615,41.46521039,122.6,122.58,0.28432314]
[1742306410814,0.03,122.61,122.6,20.14216157]
[1742306411025,0.03,122.61,122.6,18.79181043]
[1742306411230,41.49521039,122.61,122.55,6.0685]
[1742306411427,41.46521039,122.6,122.58,20.28432314]
[1742306411633,41.46521039,122.6,122.57,18.79181043]
[1742306411827,41.46521039,122.6,122.58,0.28432314]
[1742306412033,0.03,122.61,122.56,8.3]
[1742306412034,41.46521039,122.59,122.56,8.3]
[1742306412229,41.46521039,122.57,122.56,0.14216157]
[1742306412435,41.46521039,122.58,122.55,6.0685]
[1742306412829,81.8,122.6,122.55,6.0685]
[1742306412830,81.8,122.6,122.56,18.79181043]
[1742306413140,0.03,122.61,122.56,0.14216157]
[1742306413448,41.49521039,122.61,122.56,41.46521039]
[1742306413620,41.46521039,122.58,122.55,6.0685]
[1742306413822,41.46521039,122.59,122.56,18.933972]
[1742306414136,81.8,122.6,122.57,0.14216157]
[1742306414340,123.26521039,122.6,122.57,0.14216157]
[1742306414516,81.8,122.6,122.57,0.14216157]
[1742306414836,81.8,122.6,122.59,0.28432314]
[1742306415045,41.49521039,122.61,122.59,0.28432314]
[1742306415925,0.03,122.61,122.59,0.28432314]
[1742306416122,41.49521039,122.61,122.59,0.28432314]
[1742306416519,0.03,122.61,122.59,0.28432314]
[1742306416934,0.03,122.61,122.56,8.44216157]
[1742306416935,41.49521039,122.61,122.56,8.44216157]
[1742306417140,41.49521039,122.61,122.57,18.933972]
[1742306417337,0.03,122.61,122.6,0.28432314]
[1742306417642,0.03,122.61,122.6,68.84134396]
[1742306417838,0.03,122.61,122.6,27.37613357]
[1742306419815,0.03,122.61,122.59,1.5638]
[1742306420042,41.49521039,122.61,122.58,18.85481043]
[1742306420235,41.49521039,122.61,122.58,0.063]
[1742306420439,41.49521039,122.61,122.58,0.20516157]
[1742306420739,41.49521039,122.61,122.58,0.063]
[1742306421041,0.03,122.61,122.58,0.34732314]
[1742306421221,0.03,122.61,122.58,0.20516157]
[1742306421533,0.03,122.61,122.58,0.34732314]
[1742306421735,0.03,122.61,122.6,0.14216157]
[1742306421926,0.03,122.61,122.6,0.28432314]
[1742306423250,0.03,122.61,122.59,8.42216157]
[1742306423426,41.49521039,122.61,122.59,0.14216157]
[1742306424628,0.03,122.61,122.59,0.14216157]
[1742306425346,0.03,122.61,122.6,18.79181043]
[1742306426127,0.03,122.61,122.6,19.07613357]
[1742306426322,0.03,122.61,122.6,27.35613357]
[1742306427324,0.03,122.61,122.6,68.82134396]
[1742306427736,0.03,122.61,122.6,27.35613357]
[1742306427937,0.03,122.61,122.6,68.82134396]
[1742306429041,41.46521039,122.69,122.61,0.28432314]
[1742306429243,81.8,122.71,122.65,19.07613357]
[1742306429435,81.8,122.71,122.65,68.82134396]
[1742306429640,41.46521039,122.69,122.65,27.35613357]
[1742306430151,41.46521039,122.68,122.65,27.35613357]
[1742306430341,41.46521039,122.66,122.62,18.933972]
[1742306430539,41.46521039,122.65,122.63,0.14216157]
[1742306430723,41.46521039,122.64,122.61,8.28]
[1742306430930,139.69531039,122.7,122.61,8.28]
[1742306430931,41.46521039,122.65,122.61,8.28]
[1742306431343,41.46521039,122.65,122.62,19.07613357]
[1742306431547,81.8,122.69,122.62,19.07613357]
[1742306431723,41.46521039,122.65,122.62,19.07613357]
[1742306431930,41.46521039,122.66,122.62,19.07613357]
[1742306432228,41.46521039,122.65,122.62,19.07613357]
[1742306432643,41.46521039,122.64,122.62,0.28432314]
[1742306433048,41.46521039,122.63,122.62,0.28432314]
[1742306433349,81.8,122.67,122.62,0.28432314]
[1742306433545,41.46521039,122.63,122.59,8.28]
[1742306433849,41.46521039,122.6,122.58,0.063]
[1742306434149,41.46521039,122.59,122.58,0.063]
[1742306436041,82.93042078,122.59,122.58,0.063]
[1742306436440,41.46521039,122.59,122.58,0.063]
[1742306437855,91.08762078,122.59,122.55,0.063]
[1742306438153,61.46521039,122.56,122.55,0.063]
[1742306438353,69.74521039,122.56,122.55,0.063]
[1742306438929,49.74521039,122.56,122.55,0.063]
[1742306439551,8.28,122.56,122.55,0.063]
[1742306439758,49.74521039,122.56,122.55,0.063]
[1742306440154,41.46521039,122.56,122.55,0.063]
[1742306440452,41.46521039,122.57,122.55,0.063]
[1742306441035,8.28,122.59,122.55,0.063]
[1742306441235,41.46521039,122.58,122.55,0.20516157]
[1742306441448,41.46521039,122.58,122.55,0.063]
[1742306441655,41.46521039,122.56,122.55,0.063]
[1742306442161,41.46521039,122.57,122.55,0.063]
[1742306442336,41.46521039,122.56,122.55,0.063]
[1742306446258,20.0,122.57,122.55,0.063]
[1742306446555,61.46521039,122.57,122.55,0.063]
[1742306446764,41.46521039,122.56,122.55,0.063]
[1742306448559,20.0,122.57,122.55,0.063]
[1742306448744,41.46521039,122.56,122.55,0.063]
[1742306449461,61.46521039,122.57,122.55,0.063]
[1742306449760,20.0,122.57,122.55,0.063]
[1742306450149,61.46521039,122.57,122.55,0.063]
[1742306450354,123.26521039,122.58,122.55,0.063]
[1742306450668,81.8,122.58,122.56,0.42648471]
[1742306451550,41.46521039,122.61,122.56,66.91424396]
[1742306452364,81.8,122.62,122.57,41.46521039]
[1742306452566,81.8,122.62,122.58,41.8916951]
[1742306453061,81.8,122.62,122.58,19.07613357]
[1742306453261,123.26521039,122.62,122.58,0.42648471]
[1742306453447,123.26521039,122.62,122.58,19.07613357]
[1742306453849,41.46521039,122.61,122.58,0.42648471]
[1742306455656,41.46521039,122.61,122.58,19.07613357]
[1742306455657,0.03,122.61,122.58,19.07613357]
[1742306456672,0.03,122.61,122.59,60.11485925]
[1742306456867,0.03,122.61,122.6,60.11485925]
[1742306457072,0.03,122.61,122.6,60.54134396]
[1742306457568,0.03,122.61,122.6,62.10454396]
[1742306458468,0.03,122.61,122.6,20.63933357]
[1742306458752,0.03,122.61,122.6,62.10454396]
[1742306459161,0.03,122.61,122.6,20.63933357]
[1742306459362,0.03,122.61,122.6,62.10454396]
[1742306459563,0.03,122.61,122.6,68.53714396]
[1742306460369,0.03,122.61,122.6,27.07193357]
[1742306460869,0.03,122.61,122.6,8.13796157]
[1742306461078,41.49521039,122.61,122.58,0.14216157]
[1742306461251,0.03,122.61,122.6,0.14216157]
[1742306462349,0.03,122.61,122.6,60.54134396]
[1742306462965,0.03,122.61,122.6,62.06164396]
[1742306463273,0.03,122.61,122.6,68.52204396]
[1742306463470,123.26521039,122.69,122.62,0.14216157]
[1742306463664,81.8,122.69,122.65,0.14216157]
[1742306463864,81.8,122.69,122.67,0.42648471]
[1742306464070,41.46521039,122.71,122.67,0.42648471]
[1742306464271,81.8,122.72,122.67,0.42648471]
[1742306464452,41.46521039,122.71,122.67,0.42648471]
[1742306464970,0.03,122.74,122.7,18.64964886]
[1742306465148,41.49521039,122.74,122.7,60.11485925]
[1742306465352,41.49521039,122.74,122.71,0.42648471]
[1742306465570,0.03,122.74,122.71,0.42648471]
[1742306465771,0.03,122.74,122.7,18.64964886]
[1742306465772,41.46521039,122.72,122.69,0.42648471]
[1742306465961,41.49521039,122.74,122.69,60.54134396]
[1742306466354,0.03,122.74,122.71,0.42648471]
[1742306466556,0.03,122.74,122.71,60.54134396]
[1742306466955,0.03,122.74,122.73,19.07613357]
[1742306467467,0.03,122.74,122.72,8.28]
[1742306467774,41.46521039,122.73,122.7,0.28432314]
[1742306467964,41.49521039,122.74,122.7,0.28432314]
[1742306468164,41.46521039,122.73,122.7,0.28432314]
[1742306468366,41.49521039,122.74,122.7,0.14216157]
[1742306468563,41.49521039,122.74,122.71,18.79181043]
[1742306468778,81.83,122.76,122.72,0.28432314]
[1742306468779,40.99521039,122.75,122.72,0.28432314]
[1742306469180,40.99521039,122.75,122.72,0.42648471]
[1742306470100,81.83,122.76,122.72,19.07613357]
[1742306470262,81.83,122.76,122.72,60.54134396]
[1742306470578,81.83,122.76,122.72,68.82134396]
[1742306470772,0.03,122.76,122.72,68.82134396]
[1742306470967,41.49521039,122.76,122.72,27.35613357]
[1742306471167,41.49521039,122.76,122.72,8.70648471]
[1742306471168,41.46521039,122.74,122.72,8.70648471]
[1742306472376,41.46521039,122.73,122.72,8.28]
[1742306472582,41.46521039,122.73,122.7,0.28432314]
[1742306472782,41.46521039,122.74,122.71,0.28432314]
[1742306473084,81.8,122.86,122.77,0.14216157]
[1742306473283,41.49521039,122.87,122.79,0.42648471]
[1742306473465,41.49521039,122.87,122.83,0.42648471]
[1742306473666,41.49521039,122.87,122.83,19.07613357]
[1742306473878,41.46521039,122.85,122.83,0.42648471]
[1742306474060,41.46521039,122.86,122.83,0.42648471]
[1742306474659,61.46521039,122.85,122.81,18.64964886]
[1742306474879,41.46521039,122.84,122.8,0.42648471]
[1742306475368,41.46521039,122.82,122.79,8.28]
[1742306475567,41.46521039,122.8,122.75,6.0937]
[1742306475877,41.46521039,122.77,122.76,0.42648471]
[1742306476069,41.46521039,122.78,122.74,1.5146]
[1742306476267,81.8,122.81,122.74,0.14216157]
[1742306476571,41.46521039,122.77,122.74,18.79181043]
[1742306476770,41.46521039,122.77,122.75,0.28432314]
[1742306476969,41.46521039,122.78,122.75,0.28432314]
[1742306477362,81.8,122.8,122.77,41.8916951]
[1742306477681,61.46521039,122.81,122.77,8.70648471]
[1742306478584,41.46521039,122.79,122.77,8.70648471]
[1742306478977,41.46521039,122.8,122.77,8.70648471]
[1742306479472,41.46521039,122.79,122.77,8.70648471]
[1742306479668,41.46521039,122.78,122.75,0.28432314]
[1742306479872,41.46521039,122.79,122.76,0.14216157]
[1742306480072,41.46521039,122.78,122.76,0.14216157]
[1742306480595,101.8,122.81,122.76,0.42648471]
[1742306480889,41.46521039,122.8,122.76,0.42648471]
[1742306481080,61.46521039,122.81,122.76,41.8916951]
[1742306481283,41.46521039,122.8,122.77,0.14216157]
[1742306481464,41.46521039,122.78,122.75,0.28432314]
[1742306481670,41.46521039,122.76,122.75,0.42648471]
[1742306481871,41.46521039,122.77,122.75,0.42648471]
[1742306482185,81.8,122.79,122.75,18.933972]
[1742306482386,123.26521039,122.79,122.76,0.14216157]
[1742306482607,41.46521039,122.78,122.76,0.14216157]
[1742306482886,123.26521039,122.79,122.76,0.14216157]
[1742306484081,41.46521039,122.78,122.76,0.14216157]
[1742306486191,41.46521039,122.77,122.74,0.28432314]
[1742306486379,41.46521039,122.75,122.72,14.5188]
[1742306486582,41.46521039,122.75,122.73,0.14216157]
[1742306486796,81.8,122.78,122.73,19.07613357]
[1742306486978,81.8,122.78,122.75,0.42648471]
[1742306487179,81.8,122.78,122.75,0.14216157]
[1742306488098,41.46521039,122.79,122.75,0.14216157]
[1742306489000,41.46521039,122.78,122.74,0.28432314]
[1742306489403,81.8,122.81,122.78,0.42648471]
[1742306489605,81.8,122.81,122.78,8.68648471]
[1742306489792,81.8,122.83,122.8,41.8916951]
[1742306490306,81.8,122.83,122.79,24.90804886]
[1742306490307,41.46521039,122.83,122.79,6.2584]
[1742306490489,41.46521039,122.82,122.79,6.2584]
[1742306490684,41.46521039,122.81,122.78,8.68648471]
[1742306490900,41.46521039,122.8,122.75,14.8122]
[1742306491079,41.46521039,122.78,122.76,0.14216157]
[1742306491281,41.46521039,122.81,122.77,0.28432314]
[1742306491482,123.26521039,122.83,122.79,0.42648471]
[1742306491677,81.8,122.85,122.79,68.80134396]
[1742306491892,41.46521039,122.84,122.79,68.80134396]
[1742306492280,123.26521039,122.84,122.79,68.80134396]
[1742306492476,81.8,122.84,122.79,27.33613357]
[1742306492899,41.46521039,122.82,122.79,0.28432314]
[1742306493102,41.46521039,122.82,122.8,0.14216157]
[1742306493283,41.46521039,122.83,122.8,0.14216157]
[1742306493478,123.26521039,122.84,122.8,0.14216157]
[1742306493682,81.8,122.84,122.8,0.14216157]
[1742306493884,123.26521039,122.84,122.8,0.14216157]
[1742306494183,41.46521039,122.81,122.79,8.54432314]
[1742306494802,41.46521039,122.82,122.79,8.54432314]
[1742306494986,123.26521039,122.83,122.79,8.54432314]
[1742306495394,41.46521039,122.82,122.79,8.54432314]
[1742306495795,123.26521039,122.83,122.79,8.54432314]
[1742306496404,81.8,122.83,122.8,0.14216157]
[1742306496603,123.26521039,122.83,122.8,0.14216157]
[1742306496791,81.8,122.83,122.8,0.14216157]
[1742306496994,123.26521039,122.83,122.8,0.14216157]
[1742306497802,81.8,122.83,122.82,18.79181043]
[1742306498005,41.49521039,122.87,122.83,0.28432314]
[1742306498185,41.46521039,122.86,122.83,8.54432314]
[1742306498701,41.46521039,122.85,122.83,8.26]
[1742306498901,0.03,122.87,122.83,8.26]
[1742306498902,41.46521039,122.84,122.83,8.26]
[1742306499105,81.8,122.86,122.81,0.42648471]
[1742306499592,41.46521039,122.85,122.81,19.07613357]
[1742306499794,81.8,122.86,122.83,0.42648471]
[1742306499991,123.26521039,122.86,122.83,0.42648471]
[1742306500206,81.8,122.86,122.83,0.42648471]
[1742306500598,123.26521039,122.86,122.83,0.42648471]
[1742306502999,41.46521039,122.85,122.81,19.07613357]
[1742306503289,41.46521039,122.83,122.81,0.42648471]
[1742306504187,41.46521039,122.84,122.81,0.42648471]
[1742306504503,123.26521039,122.85,122.81,19.07613357]
[1742306504702,81.83,122.87,122.81,60.54134396]
[1742306504890,41.46521039,122.86,122.81,60.54134396]
[1742306505284,41.49521039,122.86,122.81,60.54134396]
[1742306505892,41.46521039,122.85,122.81,19.07613357]
[1742306506513,0.03,122.86,122.81,19.07613357]
[1742306506893,41.49521039,122.86,122.81,60.54134396]
[1742306508216,41.46521039,122.85,122.81,19.07613357]
[1742306508398,41.46521039,122.84,122.81,19.07613357]
[1742306508597,41.46521039,122.83,122.79,18.996972]
[1742306508800,41.46521039,122.83,122.81,0.42648471]
[1742306509203,41.46521039,122.84,122.81,0.42648471]
[1742306509804,41.46521039,122.85,122.81,0.42648471]
[1742306510401,41.46521039,122.85,122.81,19.07613357]
[1742306511019,41.49521039,122.86,122.81,60.54134396]
[1742306511319,0.03,122.86,122.83,0.42648471]
[1742306511511,0.03,122.86,122.83,0.28432314]
[1742306511714,0.03,122.86,122.83,0.42648471]
[1742306512620,41.49521039,122.86,122.83,0.42648471]
[1742306512800,41.46521039,122.84,122.81,0.42648471]
[1742306512996,0.03,122.86,122.81,0.42648471]
[1742306513405,41.49521039,122.86,122.81,60.54134396]
[1742306513631,0.03,122.86,122.81,60.54134396]
[1742306514119,41.49521039,122.86,122.81,60.54134396]
[1742306514416,0.03,122.86,122.81,60.54134396]
[1742306514617,0.03,122.86,122.84,0.42648471]
[1742306515811,0.03,122.86,122.84,0.28432314]
[1742306516123,41.46521039,122.85,122.82,0.28432314]
[1742306516708,41.46521039,122.84,122.82,0.28432314]
[1742306517121,41.46521039,122.83,122.82,0.28432314]
[1742306517410,41.46521039,122.83,122.79,0.063]
[1742306517737,41.46521039,122.8,122.79,0.063]
[1742306519001,81.8,122.83,122.79,0.063]
[1742306519207,41.46521039,122.8,122.79,0.063]
[1742306521006,81.8,122.84,122.79,18.71264886]
[1742306521207,41.46521039,122.85,122.82,0.28432314]
[1742306521407,0.03,122.86,122.84,0.42648471]
[1742306521806,41.49521039,122.86,122.84,0.42648471]
[1742306522042,41.49521039,122.86,122.83,8.26]
[1742306522209,41.46521039,122.85,122.83,8.26]
[1742306522528,0.03,122.86,122.75,0.5]
[1742306522529,20.0,122.81,122.76,0.14216157]
[1742306522830,123.26521039,122.8,122.75,6.6598]
[1742306523124,123.26521039,122.8,122.76,0.14216157]
[1742306523323,123.26521039,122.8,122.76,19.07613357]
[1742306525541,49.72521039,122.8,122.74,0.063]
[1742306526221,49.72521039,122.8,122.74,0.20516157]
[1742306526537,49.72521039,122.8,122.74,0.063]
[1742306526742,41.46521039,122.75,122.74,0.063]
[1742306527034,41.46521039,122.77,122.74,0.063]
[1742306527233,41.46521039,122.75,122.74,0.063]
[1742306527431,41.46521039,122.76,122.74,0.063]
[1742306527937,41.46521039,122.77,122.74,0.063]
[1742306528531,41.46521039,122.75,122.74,0.063]
[1742306528929,81.8,122.79,122.74,0.063]
[1742306529107,41.46521039,122.76,122.74,0.063]
[1742306529311,81.8,122.78,122.74,0.34732314]
[1742306529533,41.46521039,122.77,122.74,0.34732314]
[1742306529829,41.46521039,122.75,122.74,0.34732314]
[1742306530026,41.46521039,122.75,122.74,0.063]
[1742306533549,20.0,122.75,122.74,0.063]
[1742306534046,123.26521039,122.78,122.74,0.063]
[1742306534340,123.26521039,122.78,122.75,0.42648471]
[1742306534529,41.46521039,122.77,122.75,0.42648471]
[1742306535031,41.46521039,122.76,122.74,0.34732314]
[1742306535335,25.95156429,122.77,122.75,0.14216157]
[1742306535537,81.8,122.78,122.75,0.14216157]
[1742306535719,107.75156429,122.78,122.75,0.14216157]
[1742306536115,25.95156429,122.77,122.75,0.14216157]
[1742306536509,25.95156429,122.76,122.74,0.34732314]
[1742306536723,25.95156429,122.77,122.74,0.34732314]
[1742306537117,41.51693086,122.77,122.74,0.34732314]
[1742306537439,41.51693086,122.76,122.74,0.34732314]
[1742306537754,41.51693086,122.75,122.74,0.063]
[1742306539311,41.51693086,122.76,122.74,0.063]
[1742306539717,41.51693086,122.75,122.74,0.063]
[1742306540322,41.51693086,122.76,122.74,0.063]
[1742306540833,41.51693086,122.75,122.74,0.063]
[1742306542634,20.0,122.72,122.68,0.14216157]
[1742306542936,41.51693086,122.69,122.66,0.063]
[1742306543140,41.51693086,122.67,122.66,0.063]
[1742306544217,123.31693086,122.69,122.66,0.063]
[1742306544445,81.8,122.69,122.66,0.063]
[1742306544642,123.31693086,122.69,122.66,0.063]
[1742306544827,81.8,122.69,122.67,0.42648471]
[1742306545929,81.8,122.77,122.68,41.51693086]
[1742306546141,8.26,122.79,122.68,0.42648471]
[1742306546142,41.51693086,122.74,122.68,0.42648471]
[1742306546456,81.8,122.76,122.68,0.42648471]
[1742306546457,41.51693086,122.7,122.68,0.42648471]
[1742306546625,41.51693086,122.69,122.67,8.26]
[1742306546830,41.51693086,122.68,122.66,0.063]
[1742306547051,41.51693086,122.67,122.66,0.063]
[1742306548443,41.51693086,122.7,122.67,19.07613357]
[1742306548646,41.51693086,122.71,122.67,19.07613357]
[1742306548949,81.8,122.73,122.7,0.42648471]
[1742306549246,41.51693086,122.71,122.69,0.42648471]
[1742306549622,41.51693086,122.72,122.69,0.42648471]
[1742306549847,41.51693086,122.7,122.68,8.26]
[1742306550026,49.77693086,122.76,122.68,8.26]
[1742306550027,41.51693086,122.71,122.68,8.26]
[1742306550234,81.8,122.72,122.69,0.42648471]
[1742306550430,123.31693086,122.72,122.69,0.42648471]
[1742306550637,41.51693086,122.71,122.69,0.42648471]
[1742306550964,81.8,122.72,122.69,0.42648471]
[1742306551252,41.51693086,122.71,122.69,0.42648471]
[1742306551654,123.31693086,122.72,122.69,0.42648471]
[1742306552454,41.51693086,122.7,122.66,18.71264886]
[1742306552652,41.51693086,122.69,122.66,0.063]
[1742306553041,41.51693086,122.69,122.66,0.34732314]
[1742306553456,41.51693086,122.7,122.66,0.063]
[1742306553759,81.8,122.75,122.7,0.28432314]
[1742306554054,81.8,122.75,122.72,0.42648471]
[1742306554241,41.51693086,122.77,122.74,0.42648471]
[1742306554967,81.8,122.78,122.72,0.14216157]
[1742306555141,81.8,122.78,122.72,0.42648471]
[1742306555539,41.51693086,122.76,122.72,0.42648471]
[1742306555852,41.51693086,122.75,122.72,0.42648471]
[1742306556245,41.51693086,122.75,122.72,8.68648471]
[1742306556447,81.8,122.78,122.72,8.68648471]
[1742306556647,41.51693086,122.77,122.72,8.68648471]
[1742306556853,41.51693086,122.77,122.72,50.20341557]
[1742306557167,81.8,122.78,122.76,0.42648471]
[1742306557351,0.03,122.79,122.76,0.42648471]
[1742306557543,41.54693086,122.79,122.76,0.42648471]
[1742306557755,41.54693086,122.79,122.76,0.28432314]
[1742306557756,41.51693086,122.78,122.76,0.28432314]
[1742306557956,41.54693086,122.79,122.76,0.42648471]
[1742306558157,0.03,122.79,122.76,0.42648471]
[1742306558359,41.54693086,122.79,122.76,0.42648471]
[1742306558556,41.51693086,122.77,122.73,0.28432314]
[1742306558753,41.51693086,122.75,122.73,0.14216157]
[1742306558961,41.51693086,122.74,122.72,8.26]
[1742306559166,41.51693086,122.75,122.72,8.26]
[1742306559463,41.51693086,122.74,122.72,8.26]
[1742306559858,41.51693086,122.75,122.72,8.26]
[1742306560359,20.0,122.7,122.66,0.063]
[1742306560546,41.51693086,122.67,122.66,0.063]
[1742306561067,41.51693086,122.68,122.66,0.063]
[1742306561576,41.51693086,122.67,122.66,0.063]
[1742306564063,41.51693086,122.68,122.66,0.063]
[1742306564254,123.31693086,122.69,122.66,0.063]
[1742306564456,41.51693086,122.67,122.66,0.063]
[1742306565262,81.8,122.69,122.66,0.063]
[1742306565263,41.51693086,122.68,122.66,0.063]
[1742306565561,143.31693086,122.67,122.66,0.063]
[1742306565742,143.31693086,122.67,122.62,0.063]
[1742306565743,77.92883086,122.67,122.62,0.063]
[1742306565950,41.51693086,122.63,122.62,0.063]
[1742306566150,49.77693086,122.63,122.58,0.063]
[1742306566352,41.51693086,122.62,122.58,0.063]
[1742306568471,101.8,122.64,122.59,0.28432314]
[1742306568766,123.31693086,122.64,122.61,0.48948471]
[1742306569067,223.88,122.68,122.61,0.48948471]
[1742306569068,81.8,122.67,122.61,8.74948471]
[1742306569247,41.51693086,122.65,122.61,8.74948471]
[1742306569572,41.51693086,122.63,122.61,8.74948471]
[1742306569950,41.51693086,122.62,122.61,0.063]
[1742306570154,41.51693086,122.63,122.61,0.063]
[1742306570357,41.51693086,122.63,122.61,0.48948471]
[1742306570950,41.51693086,122.63,122.61,0.063]
[1742306571750,41.51693086,122.62,122.61,0.063]
[1742306575954,41.51693086,122.62,122.58,0.063]
[1742306575955,20.0,122.59,122.58,0.063]
[1742306576167,61.51693086,122.59,122.58,0.063]
[1742306576970,103.03386172,122.59,122.58,0.063]
[1742306577176,111.19106172,122.59,122.58,0.063]
[1742306577373,121.68351058,122.59,122.58,0.063]
[1742306577590,129.84071058,122.59,122.56,0.063]
[1742306577762,41.51693086,122.57,122.56,0.063]
[1742306579275,49.67553086,122.57,122.55,0.063]
[1742306579480,68.42657972,122.56,122.54,0.063]
[1742306579661,41.51693086,122.55,122.54,0.063]
[1742306580976,20.0,122.53,122.52,0.063]
[1742306581172,103.17602329,122.53,122.52,0.063]
[1742306581368,121.68351058,122.52,122.48,0.03]
[1742306581569,18.64964886,122.51,122.48,0.03]
[1742306581759,61.51693086,122.49,122.48,0.03]
[1742306582573,80.16657972,122.49,122.46,0.087]
[1742306582779,41.51693086,122.47,122.46,0.087]
[1742306583300,101.82567215,122.47,122.46,0.087]
[1742306583574,20.0,122.44,122.43,0.063]
[1742306583876,69.77693086,122.44,122.41,0.063]
[1742306584060,41.51693086,122.43,122.41,0.063]
[1742306584264,60.16657972,122.43,122.41,0.063]
[1742306584757,41.51693086,122.43,122.41,0.063]
[1742306585155,20.0,122.4,122.39,0.03]
[1742306585463,20.0,122.36,122.3,6.0749]
[1742306585658,41.51693086,122.32,122.3,6.0749]
[1742306585857,28.26,122.36,122.3,6.0749]
[1742306586074,41.51693086,122.34,122.3,6.0749]
[1742306586283,41.51693086,122.35,122.31,18.933972]
[1742306586585,41.51693086,122.34,122.3,14.3349]
[1742306586763,41.51693086,122.34,122.31,0.14216157]
[1742306587163,8.26,122.39,122.31,18.933972]
[1742306587364,62.69198727,122.36,122.32,0.14216157]
[1742306587561,62.69198727,122.38,122.33,18.933972]
[1742306587764,8.26,122.42,122.35,18.933972]
[1742306587765,62.69198727,122.39,122.35,18.933972]
[1742306587954,224.24,122.44,122.36,0.14216157]
[1742306588168,62.69198727,122.38,122.36,0.14216157]
[1742306588372,62.69198727,122.4,122.36,0.14216157]
[1742306588559,62.69198727,122.39,122.36,0.14216157]
[1742306589482,62.69198727,122.41,122.38,0.28432314]
[1742306589781,62.69198727,122.44,122.41,0.28432314]
[1742306590297,144.49198727,122.45,122.41,0.28432314]
[1742306590488,90.06,122.49,122.41,0.28432314]
[1742306590691,62.69198727,122.42,122.4,8.26]
[1742306590880,62.69198727,122.42,122.41,0.28432314]
[1742306591177,62.69198727,122.44,122.41,19.07613357]
[1742306591381,216.08,122.5,122.41,81.76812084]
[1742306591382,62.69198727,122.46,122.41,81.76812084]
[1742306591555,62.69198727,122.47,122.41,81.76812084]
[1742306591884,62.69198727,122.48,122.43,81.76812084]
[1742306592180,62.69198727,122.46,122.45,0.42648471]
[1742306592387,62.69198727,122.46,122.44,8.26]
[1742306592966,62.69198727,122.47,122.44,8.26]
[1742306593467,81.8,122.5,122.45,19.07613357]
[1742306593677,144.49198727,122.52,122.45,19.07613357]
[1742306593879,62.69198727,122.5,122.45,81.76812084]
[1742306594087,62.69198727,122.49,122.45,19.07613357]
[1742306594670,62.69198727,122.5,122.45,81.76812084]
[1742306595066,62.69198727,122.5,122.48,0.42648471]
[1742306595270,62.69198727,122.5,122.47,0.28432314]
[1742306595466,62.69198727,122.48,122.47,0.28432314]
[1742306595781,62.69198727,122.48,122.45,0.42648471]
[1742306595970,62.69198727,122.46,122.45,0.14216157]
[1742306596366,62.69198727,122.46,122.45,0.28432314]
[1742306596894,62.69198727,122.46,122.44,1.5804]
[1742306597069,62.69198727,122.45,122.44,2.00688471]
[1742306597274,62.69198727,122.46,122.44,1.86472314]
[1742306597469,62.69198727,122.46,122.45,0.42648471]
[1742306597668,62.69198727,122.47,122.45,19.07613357]
[1742306597886,62.69198727,122.48,122.45,19.07613357]
[1742306598075,62.69198727,122.49,122.45,19.07613357]
[1742306598474,81.8,122.51,122.45,19.07613357]
[1742306598780,62.69198727,122.49,122.45,19.07613357]